bitfinex-derivatives/quotes_SOLF0:USTF0_20251125
["timestamp","ask_amount","ask_price","bid_price","bid_amount"]
[1764097281380,25.18657717,136.4,136.38,3.24128652]
[1764097282080,25.18657717,136.4,136.38,9.84418652]
[1764097283082,25.50657717,136.4,136.38,0.05128652]
[1764097283485,25.50657717,136.4,136.38,3.24128652]
[1764097285280,25.18657717,136.4,136.38,0.05128652]
[1764097285481,0.32,136.39,136.38,0.05128652]
[1764097285687,25.50657717,136.4,136.38,0.05128652]
[1764097287278,25.18657717,136.4,136.38,3.24128652]
[1764097287480,0.04657717,136.4,136.38,9.84418652]
[1764097287682,0.36657717,136.4,136.38,9.84418652]
[1764097289496,0.36657717,136.4,136.38,3.24128652]
[1764097290397,0.36657717,136.4,136.38,0.05128652]
[1764097292000,0.04657717,136.4,136.38,3.24128652]
[1764097292201,0.04657717,136.4,136.39,3.19]
[1764097292903,0.04657717,136.4,136.39,9.7924]
[1764097293290,25.14,136.43,136.4,3.19]
[1764097293494,25.14,136.43,136.42,3.19]
[1764097293692,25.14,136.43,136.41,9.7914]
[1764097293992,25.44,136.44,136.41,9.7914]
[1764097294397,25.48803991,136.44,136.41,9.84152375]
[1764097295102,0.04803991,136.44,136.43,3.19]
[1764097295399,0.36803991,136.44,136.41,3.24012375]
[1764097296184,0.32,136.43,136.41,3.24012375]
[1764097296398,0.36803991,136.44,136.41,3.24012375]
[1764097297391,0.04803991,136.44,136.41,3.24012375]
[1764097297994,0.04803991,136.44,136.42,6.6009]
[1764097298196,0.04803991,136.44,136.42,9.7909]
[1764097298598,0.36803991,136.44,136.41,0.05012375]
[1764097298802,0.36803991,136.44,136.43,0.00251782]
[1764097299000,0.36803991,136.44,136.41,0.05012375]
[1764097299001,10.88158466,136.44,136.41,0.05012375]
[1764097299300,14.52051055,136.43,136.41,0.05012375]
[1764097299501,9.31174168,136.43,136.41,0.05012375]
[1764097300003,9.31174168,136.43,136.42,1.82260756]
[1764097300303,14.52179691,136.43,136.42,1.82260756]
[1764097300506,14.52195987,136.43,136.42,1.82260756]
[1764097301206,6.6021,136.4,136.37,3.19]
[1764097301399,25.14,136.39,136.34,3.19]
[1764097301700,25.14,136.39,136.34,9.7948]
[1764097301900,25.14,136.39,136.35,3.19]
[1764097302491,0.05567833,136.38,136.36,3.24376534]
[1764097303815,0.05567833,136.38,136.36,0.05376534]
[1764097304308,6.65867833,136.38,136.36,0.05376534]
[1764097305103,0.05567833,136.38,136.36,0.05376534]
[1764097305309,0.05567833,136.38,136.36,3.24376534]
[1764097305604,0.05567833,136.38,136.36,0.05376534]
[1764097307304,6.65877833,136.38,136.36,0.05376534]
[1764097307492,0.05567833,136.38,136.36,3.19376534]
[1764097309908,0.05567833,136.38,136.36,0.05376534]
[1764097311310,0.05567833,136.38,136.36,3.19376534]
[1764097311810,25.17567833,136.38,136.36,3.19376534]
[1764097320926,31.77857833,136.38,136.36,0.05376534]
[1764097321220,31.77857833,136.38,136.3,3.12]
[1764097321221,5.21519888,136.37,136.3,3.12]
[1764097321422,25.12,136.36,136.3,3.12]
[1764097322211,0.04704657,136.34,136.32,0.04706592]
[1764097322415,0.04704657,136.34,136.32,3.16706592]
[1764097323320,0.04704657,136.34,136.32,9.77276592]
[1764097325116,0.04704657,136.34,136.32,3.16706592]
[1764097326320,0.04704657,136.34,136.32,0.04706592]
[1764097326521,0.04704657,136.34,136.32,3.16706592]
[1764097327611,0.04704657,136.34,136.32,9.77256592]
[1764097327818,0.04704657,136.34,136.33,3.12]
[1764097329225,0.04704657,136.34,136.32,0.04706592]
[1764097329617,6.65204657,136.34,136.32,0.04706592]
[1764097329817,6.65204657,136.34,136.33,1.82352481]
[1764097330125,11.84861059,136.34,136.33,1.82352481]
[1764097330329,6.65204657,136.34,136.33,1.82352481]
[1764097331219,0.04704657,136.34,136.33,4.94352481]
[1764097331533,25.12,136.38,136.34,3.12]
[1764097332315,25.12,136.38,136.35,9.7243]
[1764097332521,0.04848553,136.37,136.35,3.17224566]
[1764097334616,0.04848553,136.37,136.35,0.05224566]
[1764097337020,0.04848553,136.37,136.35,3.17224566]
[1764097337218,0.04848553,136.37,136.35,0.05224566]
[1764097337423,25.12,136.36,136.35,0.05224566]
[1764097339123,25.12,136.36,136.35,3.10224566]
[1764097339326,0.04848553,136.37,136.35,3.10224566]
[1764097339720,0.04848553,136.37,136.36,3.05]
[1764097341626,0.04848553,136.37,136.35,3.10224566]
[1764097343928,0.04848553,136.37,136.35,0.05224566]
[1764097344534,0.04848553,136.37,136.36,1.82589134]
[1764097344730,10.9308635,136.37,136.36,1.82589134]
[1764097344931,10.9308635,136.37,136.35,0.05224566]
[1764097344932,16.62530525,136.37,136.35,0.05224566]
[1764097345131,10.88237797,136.36,136.35,0.05224566]
[1764097345836,17.48627797,136.36,136.35,0.05224566]
[1764097346536,10.88237797,136.36,136.29,3.05]
[1764097346838,10.88237797,136.35,136.34,1.82627388]
[1764097347026,102.7453,136.34,136.26,3.05]
[1764097347228,102.7584,136.32,136.26,3.05]
[1764097347424,102.7584,136.32,136.23,3.05]
[1764097347633,0.04762503,136.29,136.26,3.09918631]
[1764097348033,6.65492503,136.29,136.26,3.09918631]
[1764097348233,6.65492503,136.29,136.26,0.04918631]
[1764097348234,25.12,136.28,136.26,0.04918631]
[1764097348640,5.23940976,136.27,136.26,0.04918631]
[1764097349338,31.7279,136.28,136.26,0.04918631]
[1764097349643,31.7279,136.28,136.27,1.8231501]
[1764097349942,36.9616818,136.28,136.26,0.04918631]
[1764097350135,31.7279,136.28,136.26,0.04918631]
[1764097350337,36.95700553,136.28,136.26,0.04918631]
[1764097351339,31.7279,136.28,136.26,0.04918631]
[1764097351736,25.12,136.28,136.26,0.04918631]
[1764097352141,25.12,136.28,136.27,1.82017974]
[1764097353134,0.04762503,136.29,136.28,3.05]
[1764097353329,25.16762503,136.29,136.26,3.09918631]
[1764097353650,25.16762503,136.29,136.27,1.81869984]
[1764097353835,29.40206678,136.29,136.26,0.04918631]
[1764097354035,34.62416567,136.29,136.26,0.04918631]
[1764097354229,6.6078,136.28,136.26,0.04918631]
[1764097354839,11.82989889,136.28,136.26,0.04918631]
[1764097355037,6.6078,136.28,136.26,0.04918631]
[1764097355244,102.7964,136.27,136.19,3.05]
[1764097355438,102.7964,136.27,136.12,116.1374]
[1764097355439,107.07184175,136.22,136.12,3.05]
[1764097355641,25.14,136.21,136.12,3.05]
[1764097355943,6.612,136.2,136.12,3.05]
[1764097356146,0.05250793,136.17,136.15,0.054825]
[1764097356338,25.14,136.16,136.15,0.054825]
[1764097356743,25.14,136.16,136.15,3.104825]
[1764097358040,102.8138,136.25,136.15,3.104825]
[1764097358347,6.6105,136.23,136.2,1.81294069]
[1764097359139,6.6105,136.23,136.2,1.85950732]
[1764097359140,6.66425847,136.23,136.2,1.85950732]
[1764097359340,6.66425847,136.23,136.2,0.04656663]
[1764097359541,6.66425847,136.23,136.2,1.85678306]
[1764097359840,6.66425847,136.23,136.2,0.04656663]
[1764097360042,6.66425847,136.23,136.2,1.85678306]
[1764097360350,6.66425847,136.23,136.2,0.04656663]
[1764097360662,6.66425847,136.23,136.2,1.85580917]
[1764097360840,0.05375847,136.23,136.2,3.09656663]
[1764097361041,25.16,136.22,136.21,4.85922715]
[1764097361246,25.16,136.22,136.21,3.05]
[1764097361647,25.16,136.22,136.2,3.09656663]
[1764097362450,25.16,136.22,136.2,0.04656663]
[1764097363355,31.7708,136.22,136.2,0.04656663]
[1764097363554,102.8416,136.21,136.14,3.05]
[1764097363741,102.8416,136.21,136.19,1.80815319]
[1764097364057,102.8416,136.21,136.18,1.80815319]
[1764097364249,6.6116,136.2,136.18,1.80815319]
[1764097364553,6.66428181,136.2,136.18,1.85843916]
[1764097364754,6.66428181,136.2,136.19,1.80815319]
[1764097365047,6.66428181,136.2,136.18,0.05028597]
[1764097367044,0.05268181,136.2,136.11,3.05]
[1764097367254,102.8737,136.17,136.09,3.18]
[1764097368142,102.8737,136.17,136.03,102.9735]
[1764097368143,0.05163879,136.14,136.12,3.23580247]
[1764097368444,25.18,136.13,136.12,0.05504786]
[1764097369544,0.05163879,136.14,136.12,3.23504786]
[1764097369843,25.18,136.13,136.12,3.23504786]
[1764097370041,0.05163879,136.14,136.12,3.23504786]
[1764097370243,25.18,136.13,136.12,3.23504786]
[1764097371747,25.18,136.13,136.12,0.05504786]
[1764097371948,25.18,136.13,136.12,3.23504786]
[1764097374152,25.18,136.13,136.12,0.05504786]
[1764097374349,6.66643879,136.14,136.12,0.05504786]
[1764097374554,25.18,136.13,136.12,3.23504786]
[1764097375860,25.18,136.13,136.12,0.05504786]
[1764097377851,25.18,136.13,136.03,3.18]
[1764097378055,102.8816,136.16,136.1,1.79943369]
[1764097378260,6.6147,136.14,136.1,1.79943369]
[1764097378464,6.6147,136.14,136.11,1.79943369]
[1764097378664,25.2,136.15,136.05,3.18]
[1764097378865,0.04690215,136.11,136.1,1.79931255]
[1764097379056,0.04830607,136.12,136.1,1.79931255]
[1764097379456,0.04830607,136.12,135.99,103.0045]
[1764097379457,6.66400607,136.12,136.04,2.91]
[1764097379655,0.05253954,136.09,136.04,2.91]
[1764097379856,25.2,136.08,136.04,2.91]
[1764097380755,0.05253954,136.09,136.05,2.91]
[1764097381063,25.24713739,136.08,136.05,2.91]
[1764097381263,25.24953009,136.08,136.03,2.91]
[1764097381470,0.04813782,136.07,136.03,2.91]
[1764097383470,25.24813782,136.07,136.03,2.91]
[1764097387564,31.86613782,136.07,136.03,2.91]
[1764097387769,25.24813782,136.07,136.0,2.91]
[1764097387971,0.04793255,136.05,136.0,2.91]
[1764097388171,6.66693255,136.05,136.0,2.91]
[1764097388381,0.04793255,136.05,136.04,1.80610266]
[1764097388677,0.04793255,136.05,136.04,2.66e-06]
[1764097388678,6.66683255,136.05,136.04,2.66e-06]
[1764097388862,6.66683255,136.05,135.97,2.91]
[1764097389377,6.6196,136.04,135.97,2.91]
[1764097389566,0.05521664,136.02,135.97,2.91]
[1764097389871,25.2,136.01,135.97,2.91]
[1764097390260,25.2,136.0,135.94,2.91]
[1764097390463,0.05042999,135.98,135.94,2.91]
[1764097390679,25.24,135.99,135.96,2.91]
[1764097390874,25.24,136.0,135.99,2.91]
[1764097391569,25.24,136.02,136.0,2.91]
[1764097391773,25.28681882,136.02,136.0,2.96227956]
[1764097392468,25.28681882,136.02,136.0,9.58347956]
[1764097392675,25.28681882,136.02,136.01,2.91]
[1764097392676,0.04681882,136.02,136.01,2.91]
[1764097403277,0.04681882,136.02,136.0,0.05227956]
[1764097403679,2.77044645,136.02,136.0,0.05227956]
[1764097404188,9.39094645,136.02,136.0,0.05227956]
[1764097405184,6.66731882,136.02,136.0,0.05227956]
[1764097405573,6.66731882,136.02,135.96,3.1]
[1764097405574,9.34482763,136.01,135.96,3.1]
[1764097405780,2.72362763,136.01,135.94,3.1]
[1764097405980,2.72362763,136.01,135.95,6.6237]
[1764097406284,2.72362763,136.01,135.95,3.1]
[1764097406586,0.05269242,135.99,135.95,3.1]
[1764097406780,25.26,135.98,135.96,3.1]
[1764097406982,25.26,135.98,135.94,3.1]
[1764097408185,25.26,135.98,135.95,3.1]
[1764097408788,25.26,135.98,135.92,2.73319409]
[1764097409089,2.72362763,135.97,135.92,5.83319409]
[1764097409287,0.0495886,135.96,135.93,3.1]
[1764097409489,25.26,135.95,135.93,3.1]
[1764097410697,25.26,135.95,135.92,5.83319409]
[1764097410990,25.26,135.95,135.93,3.1]
[1764097411192,0.0495886,135.96,135.93,9.7247]
[1764097411494,25.3095886,135.96,135.94,3.1]
[1764097412891,25.3095886,135.96,135.93,12.44832763]
[1764097413201,0.0495886,135.96,135.95,3.1]
[1764097414294,5.64583987,136.03,135.96,3.1]
[1764097414496,5.18825599,136.05,135.94,3.1]
[1764097414797,6.6205,136.02,135.96,6.6232]
[1764097415188,0.0506674,136.0,135.98,0.05146315]
[1764097415499,6.6722674,136.0,135.99,1.81754429]
[1764097415693,12.32058304,136.0,135.98,0.05146315]
[1764097415892,2.72362763,135.99,135.98,0.05146315]
[1764097416088,8.37194327,135.99,135.92,2.73319409]
[1764097416290,103.0408,135.95,135.84,3.1]
[1764097416496,6.50182581,135.93,135.84,3.1]
[1764097416789,6.7328517,135.97,135.87,3.1]
[1764097416995,30.93342689,135.96,135.88,3.1]
[1764097417194,0.05308784,135.93,135.88,3.1]
[1764097420798,0.05308784,135.93,135.88,9.7269]
[1764097420999,25.33308784,135.93,135.89,3.1]
[1764097422097,0.05308784,135.93,135.89,9.7265]
[1764097422297,0.05308784,135.93,135.9,3.1]
[1764097424599,0.05308784,135.93,135.86,3.1]
[1764097426609,0.05308784,135.93,135.86,9.728]
[1764097426807,25.28,135.92,135.86,3.1]
[1764097427208,0.05308784,135.93,135.89,3.12]
[1764097427408,25.28,135.97,135.9,3.12]
[1764097427704,31.903,135.97,135.96,1.81797615]
[1764097427908,102.997,136.01,135.92,3.12]
[1764097428105,25.3,135.97,135.92,3.12]
[1764097428610,0.04835136,135.96,135.94,3.12]
[1764097429206,0.04835136,135.96,135.93,3.16647885]
[1764097429609,6.67185136,135.96,135.93,3.16647885]
[1764097430211,0.04835136,135.96,135.93,3.16647885]
[1764097430813,0.04835136,135.96,135.93,0.04647885]
[1764097431312,6.624,135.95,135.93,0.04647885]
[1764097433618,0.04835136,135.96,135.93,3.16647885]
[1764097433819,0.04835136,135.96,135.95,1.82066706]
[1764097435020,25.34835136,135.96,135.95,1.82066706]
[1764097435318,25.34835136,135.96,135.93,3.16647885]
[1764097436719,31.97175136,135.96,135.93,3.16647885]
[1764097437215,31.97175136,135.96,135.93,0.04647885]
[1764097437216,6.6239,135.95,135.93,0.04647885]
[1764097439515,25.3,135.94,135.93,0.04647885]
[1764097440220,6.6239,135.95,135.93,0.04647885]
[1764097440421,25.28,135.94,135.93,3.19647885]
[1764097442627,25.28,135.94,135.93,0.04647885]
[1764097444128,103.0622,135.92,135.86,3.15]
[1764097444534,6.6273,135.88,135.86,3.15]
[1764097444838,31.9273,135.88,135.86,3.15]
[1764097445040,31.97982814,135.88,135.86,3.15]
[1764097445338,6.6278,135.87,135.82,3.15]
[1764097445535,25.35252814,135.88,135.82,3.15]
[1764097446129,6.6287,135.85,135.82,3.15]
[1764097446437,6.6842354,135.85,135.82,3.15]
[1764097446840,0.0555354,135.85,135.82,3.15]
[1764097447136,25.3555354,135.85,135.82,3.15]
[1764097449929,0.0555354,135.85,135.82,3.15]
[1764097450130,25.3555354,135.85,135.82,3.15]
[1764097451942,0.0555354,135.85,135.82,3.15]
[1764097452138,25.3555354,135.85,135.82,3.15]
[1764097452330,103.0486,135.94,135.82,3.15]
[1764097452331,103.0577,135.93,135.82,3.15]
[1764097452532,6.627,135.89,135.83,3.15]
[1764097452840,103.0767,135.9,135.83,3.15]
[1764097453437,6.6282,135.86,135.85,0.04796637]
[1764097453641,25.3,135.86,135.85,0.04796637]
[1764097454731,0.05171276,135.88,135.85,0.04796637]
[1764097454938,25.3,135.87,135.85,0.04796637]
[1764097455542,25.3,135.86,135.85,0.04796637]
[1764097457136,25.3,135.86,135.85,3.19796637]
[1764097457338,25.3,135.86,135.85,0.04796637]
[1764097457539,25.3,135.86,135.85,3.13796637]
[1764097457739,25.3,135.86,135.85,0.04796637]
[1764097458250,0.05171276,135.88,135.85,0.04796637]
[1764097458438,25.3,135.87,135.85,0.04796637]
[1764097459448,31.9279,135.87,135.85,0.04796637]
[1764097460453,6.6279,135.87,135.85,0.04796637]
[1764097460747,25.3,135.86,135.85,0.04796637]
[1764097461144,25.3,135.86,135.77,4.26692063]
[1764097461334,103.0922,135.88,135.77,3.09]
[1764097461534,25.3,135.87,135.86,1.8279387]
[1764097461833,25.3,135.87,135.81,3.09]
[1764097462038,25.3,135.87,135.82,3.09]
[1764097462232,0.05025808,135.86,135.83,3.09]
[1764097462746,0.05025808,135.86,135.8,3.09]
[1764097463441,6.6292,135.84,135.8,3.09]
[1764097465440,0.05025808,135.86,135.8,3.09]
[1764097465441,6.6298,135.83,135.8,3.09]
[1764097465640,6.6298,135.83,135.74,103.1932]
[1764097465641,25.32,135.82,135.79,3.09]
[1764097465846,25.36746044,135.82,135.79,3.09]
[1764097466744,25.36746044,135.82,135.73,3.09]
[1764097466745,128.50656044,135.82,135.73,3.09]
[1764097466949,0.0480263,135.79,135.73,3.09]
[1764097467336,103.1668,135.78,135.69,3.09]
[1764097467553,0.05613524,135.75,135.67,3.09]
[1764097467744,0.05613524,135.75,135.68,3.09]
[1764097468050,25.34,135.74,135.69,3.09]
[1764097468747,25.34,135.73,135.7,3.09]
[1764097468939,0.05613524,135.75,135.7,3.09]
[1764097469543,25.34,135.74,135.7,3.09]
[1764097470440,0.05613524,135.75,135.7,106.3131]
[1764097470651,0.05613524,135.75,135.73,3.09]
[1764097470846,103.1242,135.84,135.74,3.09]
[1764097470847,25.34,135.78,135.74,3.09]
[1764097471253,103.1392,135.82,135.74,3.09]
[1764097471454,25.36,135.81,135.8,1.81784549]
[1764097472044,31.9906,135.81,135.8,1.81784549]
[1764097472239,33.4706,135.81,135.8,1.81784549]
[1764097472754,25.36,135.81,135.8,1.81784549]
[1764097475664,25.36,135.81,135.71,3.09]
[1764097476154,103.1527,135.8,135.71,3.09]
[1764097476558,6.6327,135.77,135.71,3.09]
[1764097476762,0.0492502,135.75,135.73,0.02080976]
[1764097477158,6.6828502,135.75,135.73,0.02080976]
[1764097477658,0.0492502,135.75,135.73,3.11080976]
[1764097477956,25.4092502,135.75,135.73,3.11080976]
[1764097479663,32.0430502,135.75,135.73,0.02080976]
[1764097482466,25.36,135.74,135.73,0.02080976]
[1764097482665,0.0492502,135.75,135.73,0.02080976]
[1764097482859,0.0492502,135.75,135.73,3.11080976]
[1764097484571,6.6828502,135.75,135.73,3.11080976]
[1764097485268,6.6828502,135.75,135.73,0.02080976]
[1764097488374,6.6828502,135.75,135.73,3.15080976]
[1764097488569,25.36,135.74,135.73,3.15080976]
[1764097489166,25.4092502,135.75,135.73,3.15080976]
[1764097489472,25.36,135.77,135.74,3.13]
[1764097490361,6.6322,135.78,135.74,3.13]
[1764097490563,25.41138478,135.77,135.75,0.05142671]
[1764097490776,25.41138478,135.77,135.75,3.18142671]
[1764097491068,32.04408478,135.77,135.75,0.05142671]
[1764097491966,6.68408478,135.77,135.75,0.05142671]
[1764097492177,25.38,135.76,135.75,0.05142671]
[1764097493864,103.1896,135.75,135.67,3.13]
[1764097494464,6.6356,135.71,135.68,3.13]
[1764097494661,25.38,135.71,135.68,3.13]
[1764097494861,6.6361,135.7,135.68,3.13]
[1764097496677,32.0161,135.7,135.68,3.13]
[1764097497377,6.6374,135.68,135.66,3.13]
[1764097499575,25.38,135.69,135.66,3.13]
[1764097499765,25.38,135.69,135.65,2.76185595]
[1764097499972,25.38,135.69,135.65,5.69185595]
[1764097500166,6.6378,135.67,135.65,5.69185595]
[1764097500371,6.69026734,135.67,135.65,5.595e-05]
[1764097501372,8.17026734,135.67,135.65,5.595e-05]
[1764097501573,6.69026734,135.67,135.65,5.595e-05]
[1764097502370,32.09026734,135.67,135.65,5.595e-05]
[1764097502572,0.05246734,135.67,135.65,2.93005595]
[1764097502980,25.42,135.71,135.66,2.93]
[1764097503970,0.04721854,135.7,135.68,2.93]
[1764097504170,25.42,135.72,135.68,2.93]
[1764097504371,6.6338,135.75,135.68,2.93]
[1764097504567,25.42,135.75,135.69,2.93]
[1764097504782,103.1523,135.8,135.69,2.93]
[1764097504991,6.6316,135.79,135.78,4.819e-05]
[1764097505283,25.44,135.79,135.77,2.98446319]
[1764097505586,25.48966394,135.79,135.77,2.97739987]
[1764097505772,25.48966394,135.79,135.77,0.04739987]
[1764097505974,109.62830923,135.86,135.77,2.97739987]
[1764097505975,6.6282,135.86,135.77,2.97739987]
[1764097506182,6.6282,135.86,135.85,1.82340971]
[1764097506385,103.0784,135.9,135.8,2.93]
[1764097506575,25.44,135.89,135.8,2.93]
[1764097506775,25.44,135.89,135.81,2.93]
[1764097506975,0.05088014,135.86,135.84,0.05216928]
[1764097507172,103.0168,135.98,135.87,2.93]
[1764097507380,25.46,135.97,135.96,1.82007744]
[1764097507687,25.46,135.97,135.89,2.93]
[1764097508087,0.04737143,135.94,135.92,2.98371549]
[1764097508287,25.46,136.01,135.95,2.93]
[1764097508787,25.46,136.05,135.98,2.93]
[1764097508987,25.46,136.05,136.04,1.81525049]
[1764097509179,25.46,136.05,136.03,0.04907599]
[1764097509486,25.51656991,136.05,136.03,0.05543047]
[1764097511088,25.51656991,136.05,136.04,1.80680843]
[1764097511289,25.51656991,136.05,136.03,0.05543047]
[1764097511979,128.48266991,136.05,136.03,0.05543047]
[1764097512176,102.989,136.02,135.93,2.93]
[1764097512983,128.4554,136.01,135.93,2.93]
[1764097513183,0.0561516,135.98,135.96,0.04759139]
[1764097513386,25.46,135.97,135.96,0.04759139]
[1764097513582,103.0414,135.95,135.9,2.93]
[1764097513788,103.0308,135.96,135.9,2.93]
[1764097514495,0.04794267,135.94,135.92,0.05537201]
[1764097515291,25.44,135.93,135.92,0.05537201]
[1764097517289,25.44,135.93,135.92,3.04537201]
[1764097517590,25.44,135.93,135.92,0.05537201]
[1764097519189,0.04794267,135.94,135.92,0.05537201]
[1764097519887,0.04794267,135.94,135.92,3.04537201]
[1764097520791,102.9509,136.07,135.92,3.04537201]
[1764097520991,25.44,136.01,135.92,2.99]
[1764097521292,25.44,136.01,135.94,2.99]
[1764097521692,0.05539486,135.99,135.97,2.99]
[1764097522197,0.05539486,135.99,135.96,0.0496628]
[1764097523693,109.53330923,135.98,135.96,0.0496628]
[1764097523880,103.06359486,135.99,135.96,0.0496628]
[1764097524286,103.015,135.98,135.96,0.0496628]
[1764097524683,103.06359486,135.99,135.96,0.0496628]
[1764097525289,6.6228,135.97,135.96,0.0496628]
[1764097525584,32.0628,135.97,135.96,0.0496628]
[1764097527995,25.44,135.97,135.96,0.0496628]
[1764097529500,25.44,135.97,135.9,3.66812]
[1764097529695,6.51820923,135.94,135.9,3.66812]
[1764097529894,25.44,135.93,135.9,3.66812]
[1764097530095,32.0651,135.93,135.9,3.66812]
[1764097530296,25.44,135.93,135.9,3.66812]
[1764097530694,25.49150455,135.93,135.9,3.72299098]
[1764097533601,6.6255,135.92,135.9,3.72299098]
[1764097533807,6.6255,135.92,135.9,9.098e-05]
[1764097537908,25.49150455,135.93,135.9,2.99009098]
[1764097538303,25.49150455,135.93,135.9,9.098e-05]
[1764097542309,6.51820923,135.92,135.9,9.098e-05]
[1764097543315,13.14360923,135.92,135.9,9.098e-05]
[1764097543708,6.51820923,135.92,135.82,2.99]
[1764097544619,6.6262,135.91,135.83,6.6296]
[1764097544805,0.04663889,135.88,135.86,0.04976239]
[1764097545004,25.46663889,135.88,135.86,0.04976239]
[1764097545218,6.51820923,135.96,135.86,4.51976239]
[1764097545518,25.42,135.95,135.88,2.99]
[1764097545717,25.44,135.95,135.89,6.6267]
[1764097546112,25.44,135.95,135.88,2.99]
[1764097546320,0.04743461,135.93,135.9,3.04274562]
[1764097547308,0.04743461,135.93,135.9,9.66884562]
[1764097548520,0.04743461,135.93,135.9,0.05274562]
[1764097549116,0.04743461,135.93,135.9,6.67894562]
[1764097549324,0.04743461,135.93,135.9,9.69894562]
[1764097549826,0.04743461,135.93,135.91,6.6257]
[1764097550214,5.70476688,135.92,135.91,6.6257]
[1764097550417,5.70476688,135.92,135.9,0.05274562]
[1764097550617,0.04743461,135.93,135.9,0.05274562]
[1764097550618,5.70476688,135.91,135.9,0.05274562]
[1764097552710,0.04743461,135.93,135.9,3.07274562]
[1764097553015,5.71015438,135.92,135.9,3.07274562]
[1764097553216,0.04743461,135.93,135.9,3.07274562]
[1764097553416,5.71075013,135.92,135.9,3.07274562]
[1764097553720,0.04743461,135.93,135.9,0.05274562]
[1764097553924,5.7092671,135.92,135.9,0.05274562]
[1764097554120,5.7092671,135.91,135.83,106.1444]
[1764097554319,5.7092671,135.9,135.83,3.02]
[1764097554621,5.7092671,135.89,135.83,3.02]
[1764097554826,5.7092671,135.88,135.84,6.629]
[1764097555020,6.7328517,135.91,135.82,106.1553]
[1764097555326,0.05534334,135.88,135.86,6.6282]
[1764097558019,0.05534334,135.88,135.85,0.05602426]
[1764097558528,0.05534334,135.88,135.86,6.6281]
[1764097559216,0.05534334,135.88,135.85,0.05602426]
[1764097560126,0.05534334,135.88,135.85,6.68462426]
[1764097560326,6.7328517,135.95,135.88,105.9877]
[1764097560632,5.69439094,135.94,135.89,6.6264]
[1764097560829,5.21409921,135.96,135.88,2.9]
[1764097561031,5.69381893,135.95,135.88,105.9879]
[1764097561221,0.05362048,135.93,135.91,9.5254]
[1764097561416,11.3222289,136.01,135.88,2.9]
[1764097561417,32.1728517,135.97,135.88,2.9]
[1764097561631,0.05530459,135.93,135.91,0.05044641]
[1764097561821,0.05530459,135.93,135.91,9.57604641]
[1764097562234,0.05530459,135.93,135.92,2.9]
[1764097562623,25.44,135.97,135.93,6.6246]
[1764097562823,25.44,135.97,135.92,2.9]
[1764097563533,25.44,135.97,135.92,6.6251]
[1764097563835,0.04707786,135.96,135.92,9.5251]
[1764097565239,0.04707786,135.96,135.92,2.9]
[1764097567123,0.04707786,135.96,135.94,2.9]
[1764097567532,0.04707786,135.96,135.91,0.05044641]
[1764097567840,0.04707786,135.96,135.92,2.9]
[1764097569235,0.04707786,135.96,135.91,0.05044641]
[1764097569637,6.6244,135.94,135.91,0.05044641]
[1764097569832,0.04707786,135.96,135.91,0.05044641]
[1764097570137,6.6254,135.92,135.83,2.9]
[1764097570436,5.2184037,135.93,135.83,2.9]
[1764097570637,103.0455,135.94,135.83,2.9]
[1764097570837,6.6256,135.92,135.83,9.5295]
[1764097571040,0.05087502,135.9,135.87,0.05489307]
[1764097573441,6.6269,135.89,135.87,0.05489307]
[1764097573645,6.6269,135.89,135.77,2.9]
[1764097573646,103.0987,135.87,135.77,2.9]
[1764097573940,6.6289,135.85,135.78,2.9]
[1764097574632,103.18017491,135.83,135.71,2.9]
[1764097574833,103.1449,135.81,135.71,2.9]
[1764097575039,6.6313,135.8,135.71,2.9]
[1764097575641,32.0704,135.82,135.72,9.5347]
[1764097575940,0.05206313,135.77,135.74,2.95398314]
[1764097577745,0.05206313,135.77,135.74,9.58788314]
[1764097577941,0.05206313,135.77,135.75,3.05]
[1764097580645,0.05206313,135.77,135.74,3.10398314]
[1764097583846,0.05206313,135.77,135.75,3.05]